bitfinex/quotes_BTCUSD_20220202
["timestamp","ask_amount","ask_price","bid_price","bid_amount"]
[1643822943886,1.81272857,37449.0,37448.0,0.02011081]
[1643822944085,2.23348157,37449.0,37447.0,0.00057328]
[1643822944286,0.953972,37448.0,37447.0,0.00057328]
[1643822944751,1.17950957,37449.0,37447.0,0.00057328]
[1643822944944,1.17950957,37449.0,37445.0,0.02]
[1643822945147,1.17450957,37449.0,37445.0,0.02]
[1643822945346,0.27372019,37448.0,37446.0,0.0005733]
[1643822945745,0.27372019,37448.0,37446.0,0.00068411]
[1643822945746,0.353972,37447.0,37446.0,0.00068411]
[1643822945946,0.64729848,37447.0,37446.0,0.00068411]
[1643822946350,1.39555921,37447.0,37446.0,0.00011081]
[1643822946550,1.39555921,37447.0,37433.0,0.02039187]
[1643822946551,0.02827123,37444.0,37433.0,0.02039187]
[1643822946745,0.116796,37445.0,37433.0,0.02039187]
[1643822946746,0.67529878,37443.0,37433.0,0.02039187]
[1643822946946,0.00014965,37441.0,37436.0,0.02]
[1643822947248,1.15563273,37440.0,37436.0,0.02]
[1643822947444,0.23059322,37438.0,37436.0,0.02]
[1643822947645,1.60223273,37437.0,37436.0,0.02]
[1643822947845,1.24826073,37437.0,37436.0,0.02]
[1643822948044,0.066799,37436.0,37431.0,0.27217021]
[1643822948244,0.74826073,37435.0,37431.0,0.00229556]
[1643822948684,0.74826073,37435.0,37431.0,0.066796]
[1643822948887,0.74826073,37435.0,37431.0,0.06736989]
[1643822949085,0.74841038,37435.0,37431.0,0.06736989]
[1643822949484,0.74841038,37435.0,37431.0,0.13416489]
[1643822949687,0.74841038,37435.0,37431.0,0.00057389]
[1643822949688,0.2357885,37434.0,37431.0,0.00057389]
[1643822949889,0.2357885,37434.0,37430.0,0.02]
[1643822950186,0.76811107,37435.0,37431.0,0.00057389]
[1643822950187,0.99747569,37435.0,37431.0,0.00057389]
[1643822950385,0.76311107,37435.0,37431.0,0.00057389]
[1643822950988,0.76311107,37435.0,37430.0,0.30968802]
[1643822951189,0.76311107,37435.0,37431.0,0.00057389]
[1643822952233,0.76311107,37435.0,37430.0,0.37648802]
[1643822952429,0.2374538,37434.0,37431.0,0.00053002]
[1643822952629,0.76311107,37435.0,37431.0,0.00053002]
[1643822953631,0.76311107,37435.0,37431.0,0.00106004]
[1643822953837,0.76311107,37435.0,37431.0,0.00053002]
[1643822954135,0.00017315,37434.0,37431.0,0.00053002]
[1643822954333,0.24177636,37434.0,37431.0,0.00053002]
[1643822954533,0.00017315,37434.0,37431.0,0.00053002]
[1643822954833,0.00017315,37434.0,37431.0,0.0005237]
[1643822955431,0.00017315,37434.0,37431.0,0.1341183]
[1643822955831,0.00017315,37434.0,37431.0,0.2335946]
[1643822956079,0.00017315,37434.0,37431.0,0.23412029]
[1643822956881,0.00017315,37434.0,37431.0,0.13412029]
[1643822957081,0.00017315,37434.0,37431.0,0.1335946]
[1643822957480,0.00017315,37434.0,37431.0,0.00052569]
[1643822957682,0.00017315,37434.0,37431.0,0.10052569]
[1643822958284,0.00017315,37434.0,37431.0,0.1]
[1643822958481,0.00017315,37434.0,37431.0,0.10016099]
[1643822959383,0.00017315,37434.0,37431.0,0.1]
[1643822959830,0.00017315,37434.0,37431.0,0.10016143]
[1643822960030,0.76283329,37435.0,37431.0,0.10016143]
[1643822960630,0.76283329,37435.0,37431.0,0.1667959]
[1643822960831,0.76283329,37435.0,37431.0,0.16695733]
[1643822961532,0.76283329,37435.0,37431.0,0.16706767]
[1643822961934,0.76283329,37435.0,37431.0,0.16690624]
[1643822962134,0.76283329,37435.0,37431.0,0.16744434]
[1643822962332,0.76283329,37435.0,37431.0,0.06744434]
[1643822962532,0.76283329,37435.0,37431.0,0.13424134]
[1643822962732,0.76283329,37435.0,37431.0,0.23424134]
[1643822963134,0.76283329,37435.0,37431.0,0.47755955]
[1643822963333,0.76261829,37435.0,37431.0,0.47813344]
[1643822963787,0.75261829,37435.0,37431.0,0.47813344]
[1643822964392,0.00020462,37434.0,37431.0,0.13370324]
[1643822964591,0.00020462,37434.0,37431.0,0.00068423]
[1643822965388,0.00020462,37434.0,37431.0,0.00011034]
[1643822965589,0.00020462,37434.0,37431.0,0.27959948]
[1643822965790,0.00020462,37434.0,37431.0,0.38017338]
[1643822966191,0.00020462,37434.0,37431.0,0.38028372]
[1643822966593,0.00020462,37434.0,37431.0,0.37970982]
[1643822966792,0.00020462,37434.0,37431.0,0.38028372]
[1643822966997,0.00020462,37434.0,37431.0,0.10068424]
[1643822967231,0.00020462,37434.0,37431.0,0.00068424]
[1643822967838,0.00020462,37434.0,37431.0,0.00011034]
[1643822968033,0.00020462,37434.0,37431.0,0.2101442]
[1643822968433,0.00020462,37434.0,37431.0,0.21025454]
[1643822968632,0.00020462,37434.0,37431.0,0.00068424]
[1643822969036,0.00020462,37434.0,37431.0,0.00011034]
[1643822969234,0.00020462,37434.0,37431.0,0.0005739]
[1643822969734,0.00020462,37434.0,37431.0,0.00068424]
[1643822970338,0.00020462,37434.0,37431.0,0.20613838]
[1643822970640,0.00020462,37434.0,37431.0,0.20671228]
[1643822971384,0.00020462,37434.0,37431.0,0.30671228]
[1643822971585,0.00020462,37434.0,37431.0,0.00011034]
[1643822971787,0.00020462,37434.0,37430.0,0.15370934]
[1643822972390,0.26106829,37434.0,37430.0,0.02011034]
[1643822972592,0.86391157,37433.0,37430.0,0.02011034]
[1643822972790,0.62062972,37432.0,37430.0,0.02011034]
[1643822972989,1.24259079,37433.0,37430.0,0.00011034]
[1643822972990,2.13662322,37431.0,37430.0,0.00011034]
[1643822973188,2.39049363,37431.0,37429.0,0.02101955]
[1643822973391,1.203972,37430.0,37429.0,0.02101955]
[1643822973590,1.93662322,37430.0,37429.0,0.02101955]
[1643822973788,1.98662322,37430.0,37429.0,0.02101955]
[1643822973988,1.98662322,37430.0,37428.0,0.00011034]
[1643822974190,1.453972,37429.0,37428.0,0.00057298]
[1643822974391,2.18662322,37429.0,37428.0,0.00057298]
[1643822974838,2.18662322,37429.0,37428.0,0.00068332]
[1643822975034,2.13320139,37429.0,37428.0,0.00068332]
[1643822975234,2.13320139,37429.0,37428.0,0.00011034]
[1643822975435,2.13320139,37429.0,37427.0,0.00057299]
[1643822975635,0.953972,37428.0,37427.0,0.00057299]
[1643822975836,1.68662322,37428.0,37427.0,0.00057299]
[1643822976234,1.68662322,37428.0,37426.0,0.00011034]
[1643822976437,1.20322258,37427.0,37426.0,0.00057301]
[1643822976635,1.9358738,37427.0,37426.0,0.00057301]
[1643822977540,1.9358738,37427.0,37421.0,0.00011034]
[1643822977541,0.22110214,37422.0,37421.0,0.00011034]
[1643822977740,0.22110214,37422.0,37419.0,0.00240278]
[1643822977937,0.22110214,37422.0,37421.0,0.01884506]
[1643822979183,0.22110214,37422.0,37421.0,0.0189554]
[1643822979985,0.22110214,37422.0,37421.0,0.00011034]
[1643822980190,0.22110214,37422.0,37420.0,0.00068344]
[1643822980988,0.22110214,37422.0,37420.0,0.0005731]
[1643822981186,0.22110214,37422.0,37417.0,0.00011034]
[1643822981487,0.22110214,37422.0,37419.0,0.00017193]
[1643822982336,0.1499303,37422.0,37417.0,0.00011034]
[1643822982539,0.1499303,37422.0,37416.0,0.20267739]
[1643822982740,0.1499303,37422.0,37419.0,0.00016033]
[1643822984136,0.1499303,37422.0,37419.0,0.00027067]
[1643822984739,0.1499303,37422.0,37419.0,0.00011034]
[1643822984938,0.1497303,37422.0,37419.0,0.00053445]
[1643822985537,0.1497303,37422.0,37419.0,0.00064479]
[1643822985737,0.1495163,37422.0,37419.0,0.00064479]
[1643822985990,0.1495163,37422.0,37419.0,0.00011034]
[1643822986190,0.1495163,37422.0,37419.0,0.00057312]
[1643822986790,0.1495163,37422.0,37419.0,0.00068346]
[1643822987094,0.1495163,37422.0,37419.0,0.00011034]
[1643822987293,0.1495163,37422.0,37419.0,0.00057312]
[1643822987898,0.1495163,37422.0,37419.0,0.00068346]
[1643822988294,0.353993,37421.0,37419.0,0.00011034]
[1643822988495,0.1495163,37422.0,37419.0,0.00057312]
[1643822989096,0.1495163,37422.0,37419.0,0.00068346]
[1643822989497,0.00020147,37421.0,37419.0,0.00011034]
[1643822989734,0.00020147,37421.0,37419.0,0.00057312]
[1643822990736,0.00020147,37421.0,37417.0,0.22310713]
[1643822990935,0.00020147,37421.0,37418.0,0.00057312]
[1643822991637,0.00020147,37421.0,37418.0,0.00068346]
[1643822992038,0.00020147,37421.0,37418.0,0.06693334]
[1643822992241,0.00020147,37421.0,37419.0,0.6437469]
[1643822992442,0.00020147,37421.0,37420.0,1.807904]
[1643822992740,0.00020147,37421.0,37420.0,1.957904]
[1643822992937,0.00020147,37421.0,37420.0,1.95801434]
[1643822993144,0.00020147,37421.0,37420.0,2.20781787]
[1643822993339,0.01985034,37424.0,37421.0,1.35]
[1643822993593,0.01985034,37424.0,37423.0,0.37496728]
[1643822993799,0.01985034,37424.0,37423.0,0.68625328]
[1643822993995,1.04208349,37427.0,37423.0,0.311286]
[1643822993996,0.00014965,37426.0,37423.0,0.311286]
[1643822994196,0.00014965,37426.0,37424.0,0.15788]
[1643822994399,0.00014965,37426.0,37424.0,0.31128]
[1643822994596,0.00014965,37426.0,37425.0,0.88545444]
[1643822994796,0.73265122,37427.0,37425.0,0.93556478]
[1643822994998,0.73265122,37427.0,37425.0,0.24449878]
[1643822995198,0.73265122,37427.0,37426.0,0.1]
[1643822995500,0.73265122,37427.0,37426.0,0.00011034]
[1643822995998,0.73265122,37427.0,37425.0,0.14503113]
[1643822996799,0.73265122,37427.0,37425.0,0.14449878]
[1643822997844,0.73265122,37427.0,37425.0,0.06691934]
[1643822999343,0.73265122,37427.0,37425.0,0.00011034]
[1643822999543,0.73265122,37427.0,37424.0,0.05404126]
[1643823000447,0.73265122,37427.0,37424.0,0.05351034]
[1643823000747,0.73265122,37427.0,37424.0,0.05408338]
[1643823001388,0.73120045,37427.0,37424.0,0.05408338]
[1643823001590,0.73120045,37427.0,37424.0,0.05351034]
[1643823002190,0.73120045,37427.0,37424.0,0.00011034]
[1643823002388,0.73120045,37427.0,37423.0,0.02011034]
[1643823003190,0.73120045,37427.0,37423.0,0.00011034]
[1643823003492,0.73120045,37427.0,37422.0,0.06692334]
[1643823003990,0.73120045,37427.0,37422.0,0.02011034]
[1643823004190,0.73120045,37427.0,37423.0,0.00057212]
[1643823004836,0.78120045,37427.0,37423.0,0.00068246]
[1643823005233,0.31094553,37425.0,37422.0,0.01942787]
[1643823005435,0.31094553,37425.0,37423.0,0.00057211]
[1643823006436,0.31094553,37425.0,37422.0,0.01942787]
[1643823006637,0.36094553,37425.0,37422.0,0.02]
[1643823007036,0.36094553,37425.0,37422.0,0.00057213]
[1643823007441,0.403993,37424.0,37422.0,0.00057213]
[1643823007639,1.953993,37423.0,37417.0,0.02089287]
[1643823007837,0.353993,37422.0,37417.0,0.04067873]
[1643823008041,1.08519345,37422.0,37417.0,0.01978586]
[1643823008239,0.353993,37421.0,37418.0,0.02]
[1643823008489,0.99835882,37419.0,37418.0,0.02]
[1643823008693,1.35235182,37419.0,37418.0,0.02]
[1643823008889,1.40235182,37419.0,37418.0,0.02]
[1643823009087,1.43355227,37419.0,37418.0,0.02]
[1643823009289,1.13519345,37419.0,37418.0,0.12487163]
[1643823009490,0.78120045,37419.0,37418.0,0.22974326]
[1643823009888,1.01468285,37419.0,37418.0,0.22974326]
[1643823010089,1.01468285,37419.0,37418.0,0.20974326]
[1643823010090,1.0155456,37419.0,37418.0,0.20974326]
[1643823010489,1.01679725,37419.0,37418.0,0.20974326]
[1643823010891,1.37079025,37419.0,37418.0,0.20974326]
[1643823011593,1.74042845,37419.0,37418.0,0.20974326]
[1643823011798,1.45,37417.0,37413.0,0.02058468]
[1643823011995,2.70056901,37416.0,37411.0,0.00990845]
[1643823012247,2.70056901,37416.0,37401.0,0.01]
[1643823012248,1.23244792,37414.0,37401.0,0.01]
[1643823012448,0.028391,37405.0,37401.0,0.01]
[1643823012647,2.56493904,37404.0,37399.0,0.133706]
[1643823012851,2.56493904,37404.0,37395.0,0.01]
[1643823012852,0.8,37401.0,37395.0,0.01]
[1643823013047,1.0,37399.0,37390.0,0.133722]
[1643823013249,1.18519345,37398.0,37387.0,0.020689]
[1643823013448,0.353993,37397.0,37387.0,0.020689]
[1643823013645,0.66229745,37392.0,37387.0,0.01]
[1643823013849,0.85739167,37392.0,37391.0,0.012]
[1643823014045,0.59509422,37392.0,37391.0,0.012]
[1643823014647,0.75,37391.0,37387.0,0.01]
[1643823014848,0.353993,37390.0,37387.0,0.01]
[1643823015048,0.89450211,37388.0,37387.0,0.01]
[1643823015249,0.353993,37388.0,37387.0,0.01]
[1643823015448,0.05,37388.0,37387.0,0.01]
[1643823015650,0.353993,37388.0,37387.0,0.01]
[1643823015850,0.24110122,37392.0,37387.0,0.01]
[1643823016092,0.353993,37391.0,37387.0,0.01]
[1643823016496,0.61936856,37391.0,37387.0,0.01]
[1643823016693,0.30465814,37388.0,37387.0,0.01]
[1643823016894,0.353993,37388.0,37387.0,0.01]
[1643823017091,0.05,37388.0,37387.0,0.01]
[1643823017292,0.353993,37388.0,37387.0,0.01]
[1643823017494,0.05,37390.0,37387.0,0.01]
[1643823017495,0.353993,37389.0,37387.0,0.01]
[1643823017693,0.24110122,37392.0,37387.0,0.01]
[1643823017992,0.353993,37391.0,37387.0,0.01]
[1643823018194,0.353993,37391.0,37387.0,0.009829]
[1643823018794,0.353993,37391.0,37387.0,0.039829]
[1643823018795,0.25622961,37390.0,37387.0,0.039829]
[1643823018999,0.353993,37389.0,37387.0,0.039829]
[1643823019196,0.403993,37389.0,37387.0,0.039829]
[1643823019394,0.59397213,37388.0,37387.0,0.039829]
[1643823019595,0.353993,37388.0,37387.0,0.03]
[1643823019853,0.03014966,37391.0,37387.0,0.32012326]
[1643823020056,0.03014966,37391.0,37388.0,0.158096]
[1643823020250,0.03014966,37391.0,37389.0,0.0534]
[1643823020450,0.81601045,37398.0,37391.0,1.65]
[1643823020651,0.81601045,37398.0,37397.0,1.75]
[1643823020849,0.81601045,37398.0,37397.0,2.62884]
[1643823021054,0.77111045,37398.0,37397.0,2.72884]
[1643823021250,0.77111045,37398.0,37397.0,3.22374819]
[1643823021450,0.02181948,37399.0,37397.0,3.29069985]
[1643823021655,0.35773241,37410.0,37398.0,2.475435]
[1643823021850,0.35773241,37410.0,37405.0,0.6674]
[1643823022051,0.35773241,37410.0,37406.0,0.0534]
[1643823022249,0.12355191,37410.0,37406.0,0.1534]
[1643823022452,0.12355191,37410.0,37409.0,1.90740492]
[1643823022453,0.02097191,37410.0,37409.0,1.90740492]
[1643823022652,0.02097191,37410.0,37409.0,2.78617392]
[1643823022850,0.02097191,37410.0,37409.0,2.88628358]
[1643823023050,0.02097191,37410.0,37409.0,2.93628358]
[1643823023520,0.02097191,37410.0,37409.0,3.16040945]
[1643823023715,0.02097191,37410.0,37409.0,3.11040945]
[1643823024319,0.02097191,37410.0,37409.0,1.51040945]
[1643823024916,0.02097191,37410.0,37409.0,1.51029979]
[1643823025518,0.01597191,37410.0,37409.0,0.978769]
[1643823025916,0.01597191,37410.0,37409.0,0.7208]
[1643823026119,0.01597191,37410.0,37409.0,0.0534]
[1643823026320,0.01597191,37410.0,37408.0,1.623e-05]
[1643823026518,1.12370386,37409.0,37408.0,1.623e-05]
[1643823026821,1.52769686,37409.0,37408.0,1.623e-05]
[1643823027251,1.05,37408.0,37405.0,0.01978493]
[1643823027447,0.353993,37407.0,37405.0,0.01978493]
[1643823027651,1.42342542,37406.0,37405.0,0.01978493]
[1643823027846,2.57942842,37406.0,37405.0,0.01978493]
[1643823028046,2.68820679,37406.0,37405.0,0.01978493]
[1643823028246,2.68820679,37406.0,37400.0,0.0182883]
[1643823028446,0.65516335,37405.0,37400.0,0.0182883]
[1643823028650,0.353993,37404.0,37400.0,0.0182883]
[1643823028851,0.57332479,37403.0,37400.0,0.0182883]
[1643823029052,1.4,37401.0,37386.0,0.051]
[1643823029252,0.30397759,37400.0,37386.0,0.051]
[1643823029451,0.35397759,37400.0,37386.0,0.051]
[1643823029849,0.2951983,37388.0,37386.0,0.31085017]
[1643823030050,0.2951983,37388.0,37386.0,0.051]
[1643823030249,0.26603195,37393.0,37387.0,0.158091]
[1643823030452,0.26603195,37393.0,37387.0,0.00010966]
[1643823030850,0.26603195,37393.0,37387.0,0.06698266]
[1643823031096,0.30585015,37399.0,37388.0,0.15865413]
[1643823031390,0.28312454,37393.0,37388.0,0.00056213]
[1643823031789,0.02538255,37393.0,37391.0,0.27725719]
[1643823032091,0.05,37393.0,37391.0,0.27725719]
[1643823032295,0.05,37393.0,37392.0,1.158069]
[1643823032691,0.05,37393.0,37392.0,0.158069]
[1643823032893,0.23345588,37399.0,37392.0,0.15807]
[1643823033094,0.58539618,37401.0,37392.0,0.166863]
[1643823033495,0.58539618,37401.0,37393.0,0.27101923]
[1643823033698,0.63539618,37401.0,37392.0,0.066863]
[1643823033898,0.05,37399.0,37391.0,0.27781928]
[1643823034096,0.2737472,37398.0,37391.0,0.27781928]
[1643823034295,0.2737472,37398.0,37391.0,0.00056209]
[1643823034497,0.2737472,37398.0,37391.0,0.1]
[1643823034755,0.24618082,37395.0,37393.0,0.00056205]
[1643823035956,0.24618082,37395.0,37392.0,0.05056207]
[1643823036858,0.24618082,37395.0,37387.0,0.0022486]
[1643823036859,0.24618082,37395.0,37387.0,0.32384904]
[1643823037057,0.24618082,37395.0,37392.0,0.00056207]
[1643823037658,0.24618082,37395.0,37392.0,0.24642881]
[1643823037960,0.24618082,37395.0,37391.0,0.05]
[1643823038159,0.24618082,37395.0,37392.0,0.00056207]
[1643823039205,0.24618082,37395.0,37391.0,0.05]
[1643823039407,0.24618082,37395.0,37392.0,0.00044576]
[1643823039605,0.24596382,37395.0,37392.0,0.00044576]
[1643823040405,0.24596382,37395.0,37391.0,0.05]
[1643823040608,0.24596382,37395.0,37392.0,0.00044576]
[1643823041207,0.21922951,37395.0,37392.0,0.00044576]
[1643823041606,0.23584312,37394.0,37392.0,0.00010838]
[1643823041806,0.23584312,37394.0,37392.0,0.00055414]
[1643823042242,0.26922951,37395.0,37392.0,0.00055414]
[1643823042842,0.02794106,37399.0,37392.0,0.00010838]
[1643823043044,0.02794106,37399.0,37392.0,0.00016829]
[1643823043243,0.02794106,37399.0,37397.0,0.20001699]
[1643823043444,0.80201,37398.0,37393.0,0.00010838]
[1643823043843,0.85201,37398.0,37393.0,0.00010838]
[1643823044144,0.22466924,37396.0,37394.0,0.00056093]
[1643823045148,0.22466924,37396.0,37392.0,0.00010838]
[1643823045344,0.22466924,37396.0,37393.0,0.00056094]
[1643823046394,0.22466924,37396.0,37392.0,0.00010838]
[1643823046592,0.22466924,37396.0,37393.0,0.00051865]
[1643823047592,0.22466924,37396.0,37392.0,0.00010838]
[1643823047799,0.22466924,37396.0,37393.0,0.00051865]
[1643823048793,0.22466924,37396.0,37392.0,0.00010838]
[1643823048994,0.22466924,37396.0,37393.0,0.00051865]
[1643823049946,0.22466924,37396.0,37392.0,0.00010838]
[1643823050145,0.22466924,37396.0,37393.0,0.00052474]
[1643823051148,0.22466924,37396.0,37392.0,0.00010838]
[1643823051346,0.22466924,37396.0,37393.0,0.00052474]
[1643823052349,0.22466924,37396.0,37392.0,0.00010838]
[1643823052547,0.22466924,37396.0,37393.0,0.00052474]
[1643823053605,0.65,37395.0,37386.0,0.051]
[1643823053805,0.65,37395.0,37393.0,0.00054068]
[1643823054705,0.88836255,37394.0,37393.0,0.00054068]
[1643823055003,0.05,37394.0,37387.0,0.21038148]
[1643823055203,0.27466924,37396.0,37391.0,0.05]
[1643823055803,0.32466924,37396.0,37391.0,0.05]
[1643823056004,0.55943722,37396.0,37391.0,0.05]
[1643823056204,1.35,37395.0,37386.0,0.051]
[1643823056412,1.35,37395.0,37385.0,0.002]
[1643823056413,1.553993,37394.0,37385.0,0.002]
[1643823056606,0.61469778,37393.0,37385.0,0.002]
[1643823056803,0.38193785,37392.0,37386.0,0.05]
[1643823057004,0.353993,37391.0,37386.0,0.05]
[1643823057254,0.03552463,37389.0,37386.0,0.05]
[1643823057455,0.353993,37388.0,37387.0,0.00016864]
[1643823057654,0.453993,37388.0,37387.0,0.00016864]
[1643823058057,0.448993,37388.0,37387.0,0.00016864]
[1643823058362,0.798993,37388.0,37385.0,0.002]
[1643823058557,0.353993,37387.0,37386.0,0.00056085]
[1643823058958,0.045,37388.0,37386.0,0.00056085]
[1643823059159,0.62371956,37387.0,37386.0,0.00056085]
[1643823059560,0.62371956,37387.0,37385.0,0.002]
[1643823059758,0.60030713,37386.0,37385.0,0.00256087]
[1643823059965,0.6,37385.0,37379.0,0.0042438]
[1643823060163,0.25063984,37383.0,37379.0,0.0042438]
[1643823060362,0.61389626,37382.0,37379.0,0.0042438]
[1643823060561,0.61389626,37382.0,37371.0,0.03007114]
[1643823060562,0.95,37380.0,37371.0,0.03007114]
[1643823060760,0.353993,37379.0,37374.0,0.02113187]
[1643823061003,0.05,37379.0,37374.0,0.02113187]
[1643823061208,0.31071333,37380.0,37376.0,0.05]
[1643823061209,0.36071333,37380.0,37376.0,0.05]
[1643823061399,0.36049733,37380.0,37376.0,0.05]
[1643823061600,0.353993,37379.0,37376.0,0.05]
[1643823062202,0.353993,37379.0,37377.0,0.00013816]
[1643823062405,1.103993,37379.0,37377.0,0.00013816]
[1643823063301,0.353993,37379.0,37378.0,0.00161]
[1643823064305,0.00020014,37379.0,37378.0,0.00161]
[1643823065054,0.0505726,37381.0,37379.0,0.55]
[1643823065250,0.0505726,37381.0,37378.0,0.00161]
[1643823065649,0.0505726,37381.0,37378.0,0.10161]
[1643823065853,0.03728,37387.0,37379.0,0.41805226]
[1643823066057,0.00058064,37381.0,37380.0,1.808138]
[1643823066252,0.00058064,37381.0,37380.0,1.961538]
[1643823066953,0.05,37383.0,37380.0,2.41672009]
[1643823067152,0.05,37383.0,37381.0,0.158136]
[1643823067551,0.05,37383.0,37382.0,0.0534]
[1643823067852,0.80201,37386.0,37382.0,0.32311968]
[1643823068051,0.80201,37386.0,37383.0,0.066881]
[1643823068352,0.80201,37386.0,37384.0,0.0534]
[1643823069213,1.09498969,37386.0,37384.0,0.0534]
[1643823069514,1.09498969,37386.0,37384.0,0.05350813]
[1643823069716,1.09498969,37386.0,37384.0,0.00010813]
[1643823070114,1.09498969,37386.0,37383.0,0.06698913]
[1643823070916,0.80201,37386.0,37383.0,0.36965815]
[1643823071125,0.80201,37386.0,37384.0,0.258121]
[1643823071321,0.80201,37386.0,37385.0,2.08327314]
[1643823071717,0.80201,37386.0,37385.0,2.23667314]
[1643823071918,0.80201,37386.0,37385.0,2.17713545]
[1643823072249,0.80201,37386.0,37385.0,0.21162113]
[1643823072450,0.80201,37386.0,37385.0,0.00010813]
[1643823072649,0.80201,37386.0,37384.0,0.00010813]
[1643823073049,0.79077017,37385.0,37384.0,0.00010813]
[1643823073351,0.79077017,37385.0,37382.0,0.05]
[1643823073352,0.903993,37385.0,37382.0,0.05]
[1643823073548,0.80201,37386.0,37382.0,0.05]
[1643823073946,0.80201,37386.0,37380.0,0.066881]
[1643823073947,0.80201,37386.0,37381.0,0.00010813]
[1643823074348,0.80261026,37386.0,37382.0,0.0534]
[1643823074951,0.80261026,37386.0,37382.0,0.1534]
[1643823075147,0.80261026,37386.0,37382.0,0.05350813]
[1643823075347,0.80201,37386.0,37382.0,0.05350813]
[1643823075548,0.80261026,37386.0,37382.0,0.05350813]
[1643823075748,0.80261026,37386.0,37382.0,0.15350813]
[1643823076500,0.80201,37386.0,37383.0,0.066875]
[1643823076698,0.80201,37386.0,37383.0,0.05350813]
[1643823076899,0.80261026,37386.0,37383.0,0.05350813]
[1643823077298,0.80261026,37386.0,37383.0,0.0534]
[1643823077698,0.80201,37386.0,37383.0,0.0534]
[1643823077898,0.80259841,37386.0,37383.0,0.0534]
[1643823078099,0.80259841,37386.0,37383.0,0.05350813]
[1643823078900,0.80201,37386.0,37383.0,0.05350813]
[1643823079300,0.80257745,37386.0,37383.0,0.05350813]
[1643823079945,0.80257745,37386.0,37383.0,0.12038713]
[1643823080145,0.80201,37386.0,37383.0,0.12038713]
[1643823080349,0.80257745,37386.0,37383.0,0.12038713]
[1643823081044,0.80257745,37386.0,37383.0,0.04850813]
[1643823081246,0.80201,37386.0,37383.0,0.04850813]
[1643823081651,0.80257781,37386.0,37383.0,0.04850813]
[1643823082046,0.80257781,37386.0,37383.0,0.04350813]
[1643823082448,0.80201,37386.0,37383.0,0.28559935]
[1643823082649,0.80244547,37386.0,37383.0,0.28559935]
[1643823083049,0.80244547,37386.0,37384.0,0.158119]
[1643823083251,0.80244547,37386.0,37385.0,0.5034]
[1643823083500,0.80244547,37386.0,37385.0,0.661512]
[1643823083698,0.80201,37386.0,37385.0,0.211512]
[1643823083900,0.80201,37386.0,37385.0,0.21162013]
[1643823084502,0.80201,37386.0,37385.0,0.27349613]
[1643823084708,0.04108344,37395.0,37385.0,2.39083995]
[1643823085004,0.05,37388.0,37387.0,1.8]
[1643823085206,0.25990326,37394.0,37387.0,2.0615]
[1643823085504,0.04108344,37395.0,37389.0,0.30299663]
[1643823085704,0.04108344,37395.0,37390.0,0.61548149]
[1643823085904,0.2551195,37392.0,37391.0,0.158075]
[1643823086104,0.2551195,37392.0,37391.0,0.211475]
[1643823087105,0.2551195,37392.0,37391.0,0.278342]
[1643823087551,0.2501195,37392.0,37391.0,0.278342]
[1643823088155,0.2501195,37392.0,37391.0,0.0534]
[1643823090857,0.2501195,37392.0,37389.0,0.05]
[1643823091900,0.00041596,37393.0,37387.0,0.066874]
[1643823092103,0.05,37394.0,37388.0,0.15809]
[1643823092298,0.05,37394.0,37387.0,0.066874]
[1643823092500,0.00041596,37392.0,37388.0,0.21149]
[1643823092701,0.00041596,37392.0,37389.0,0.158087]
[1643823092900,0.00041596,37392.0,37389.0,0.291813]
[1643823093100,0.00041596,37392.0,37390.0,0.208082]
[1643823093402,0.05,37394.0,37391.0,1.111477]
[1643823093601,0.05,37394.0,37392.0,0.15807]
[1643823093899,0.25090985,37401.0,37393.0,0.8534]
[1643823094100,0.45521311,37401.0,37393.0,0.0534]
[1643823094759,0.79494949,37401.0,37393.0,0.0534]
[1643823094957,0.05060052,37399.0,37393.0,0.0534]
[1643823095154,0.22923117,37395.0,37393.0,0.0534]
[1643823095754,0.24092709,37398.0,37393.0,0.0534]
[1643823096155,0.00060054,37396.0,37393.0,0.0534]
[1643823096957,0.265565,37395.0,37391.0,0.1]
[1643823097158,0.25231963,37394.0,37391.0,0.05]
[1643823097859,0.28060048,37392.0,37386.0,0.39093996]
[1643823098057,0.26784743,37389.0,37386.0,0.05]
[1643823098499,0.26784743,37389.0,37385.0,0.18385413]
[1643823098901,0.31784743,37389.0,37385.0,0.18385413]
[1643823099297,0.05,37389.0,37385.0,0.18385413]
[1643823099598,0.05056055,37389.0,37386.0,0.224963]
[1643823099797,0.05056055,37389.0,37388.0,0.82085982]
[1643823100002,0.05056055,37389.0,37388.0,0.97895382]
[1643823100198,0.05056055,37389.0,37388.0,1.07895382]
[1643823100401,0.05056055,37389.0,37388.0,1.37495234]
[1643823100606,0.05056055,37389.0,37388.0,1.54522334]
[1643823100607,0.05,37389.0,37388.0,1.54522334]
[1643823100902,0.05,37389.0,37388.0,2.34522334]
[1643823101303,0.05,37389.0,37388.0,2.6359187]
[1643823101703,0.02101696,37400.0,37388.0,2.6359187]
[1643823101903,0.02101696,37400.0,37396.0,0.24611761]
[1643823102102,0.02101696,37400.0,37397.0,0.0534]
[1643823103153,0.00043514,37400.0,37397.0,0.0534]
[1643823104158,0.09705117,37401.0,37397.0,0.0534]
[1643823104450,0.00060039,37400.0,37397.0,0.0534]
[1643823105453,0.07794149,37401.0,37397.0,0.0534]
[1643823105655,0.00060039,37400.0,37397.0,0.0534]
[1643823106617,0.05,37401.0,37397.0,0.0534]
[1643823106821,0.00060039,37400.0,37397.0,0.0534]
[1643823107022,0.00060039,37400.0,37397.0,0.1034]
[1643823107221,0.00060039,37400.0,37398.0,0.158035]
[1643823107423,0.00060039,37400.0,37399.0,0.9534]
[1643823107624,0.00060039,37400.0,37399.0,1.161429]
[1643823107822,0.00060039,37400.0,37399.0,1.32827746]
[1643823108323,0.00043514,37401.0,37399.0,0.37827746]
[1643823108525,0.00043514,37401.0,37399.0,0.22024846]
[1643823108725,0.00043514,37401.0,37399.0,0.12024846]
[1643823108923,0.3139994,37404.0,37399.0,0.12024846]
[1643823108924,0.05,37402.0,37399.0,0.12024846]
[1643823109124,0.29318264,37402.0,37399.0,0.0534]
[1643823109323,0.05056936,37402.0,37399.0,0.0534]
[1643823109753,0.33973638,37400.0,37396.0,0.05]
[1643823109954,0.05056936,37402.0,37396.0,0.05]
[1643823109955,0.33973638,37398.0,37396.0,0.05]
[1643823110154,1.64372938,37397.0,37396.0,0.05]
[1643823110353,2.6658876,37397.0,37396.0,0.05]
[1643823110550,3.36497704,37397.0,37396.0,0.05]